Cogmind - Beta 14 @@@ ROGUE MODE // 2024.10.12 @ 00:28:05 Player: Minty Result: Destroyed by 9W-KRB(R) with Subdweller Beam Cannon Performance ------------- Evolutions (0) 0 Regions Visited (3) 600 Robots Destroyed (19) 95 Value Destroyed (504) 504 Prototype IDs (2) 40 Alien Tech Used (0) 0 Bonus (0) 0 TOTAL SCORE: 1239 Bonus ------- None Cogmind --------- Core Integrity 0/250 Matter 265/300 Energy 89/100 System Corruption 0% Temperature Cool (9) Movement Core (50) Location -10/Subcaves Parts ------- > --- POWER (1) -------- (None) > --- PROPULSION (2) --- (None) > --- UTILITY (2) ------ Sensor Array Targeting Computer > --- WEAPON (2) ------- (None) > --- INVENTORY (5) ---- Medium Battery (150) Seismic Detector Power Shielding Battle Rifle Battle Cannon Peak State ------------ > --- POWER ------------ Light Ion Engine > --- PROPULSION ------- Light Treads Light Treads > --- UTILITY ---------- Cargo Storage Unit > --- WEAPON ----------- Assault Rifle Assault Rifle > --- INVENTORY -------- Light Ion Engine Light Ion Engine Light Ion Engine Aluminum Leg Aluminum Leg Small Storage Unit Medium Battery Targeting Computer Power Shielding Beam Cannon Assault Rifle Light Cannon [Rating: 8] Favorites ----------- Power Light Ion Engine Engine Light Ion Engine Propulsion Light Treads Treads Light Treads Leg Aluminum Leg Wheel Wheel Utility Cargo Storage Unit Device Sensor Array Storage Cargo Storage Unit Processor Targeting Computer Weapon Assault Rifle Energy Gun EM Pulse Gun Energy Cannon Beam Cannon Ballistic Gun Assault Rifle Ballistic Cannon Light Cannon Build | -11 -10 -10 -10 ------- Run | Yrd Mat Min Sub Slots Evolved . | . . . . Power . | . . . . Propulsion . | . . . . Utility . | . . . . Weapon . | . . . . Parts Attached 19 | . 12 5 2 Power 3 | . 3 . . Engine 3 | . 3 . . Core . | . . . . Reactor . | . . . . Propulsion 3 | . 3 . . Treads 2 | . 2 . . Leg . | . . . . Wheel 1 | . 1 . . Hover . | . . . . Flight . | . . . . Utility 4 | . 1 3 . Device 2 | . . 2 . Storage 1 | . 1 . . Processor 1 | . . 1 . Hackware . | . . . . Protection . | . . . . Artifact . | . . . . Weapon 9 | . 5 2 2 Energy Gun 1 | . 1 . . Energy Cannon 2 | . 1 . 1 Ballistic Gun 4 | . 3 1 . Ballistic Cannon 2 | . . 1 1 Launcher . | . . . . Special Weapon . | . . . . Impact Weapon . | . . . . Slashing Weapon . | . . . . Piercing Weapon . | . . . . Special Melee Weapon . | . . . . Unidentified Prototypes . | . . . . Parts Lost 9 | . 5 . 4 Power 2 | . 1 . 1 Propulsion 3 | . 1 . 2 Utility . | . . . . Weapon 4 | . 3 . 1 Highest Loss Streak 4 | . 3 . 4 To Critical Strikes 1 | . . . 1 Average Slot Usage (%) 83 | . 74 97 97 Engine 13 | . 13 14 14 Treads 15 | . 7 28 25 Leg 1 | . 2 . . Wheel 5 | . 8 . . Device 5 | . . 12 14 Storage 8 | . 14 . . Processor 5 | . . 12 14 Energy Gun 3 | . 5 . . Energy Cannon 6 | . 1 14 7 Ballistic Gun 11 | . 19 . . Ballistic Cannon 5 | . . 13 21 Peak Build Rating 8 | 6 8 7 8 Average Rating 6 | 6 6 6 7 On Entrance 6 | 6 6 7 7 Naked Turns . | . . . . Heaviest Build 149 | 12 149 146 10 Greatest Support 40 | 20 40 40 40 Greatest Overweight (x) 14 | . 14 3 . Average Overweight (x) 3 | . 8 . . Largest Inventory Capacity 30 | 8 30 30 5 Average Capacity 19 | 8 27 6 5 Most Carried 15 | 6 15 11 5 Average Carried 8 | 6 11 4 4 Final Capacity 30 | 8 30 5 5 Final Carried 10 | 6 10 4 5 Class Distribution -------------------- 55% | Hauler-Mutant 44% | Mutant Dominant Class ---------------- Hauler-Mutant | -10/Materials Mutant | -10/Mines Mutant | -10/Subcaves Resources | -11 -10 -10 -10 ----------- Run | Yrd Mat Min Sub Matter Collected 609 | 200 335 52 22 Remotely . | . . . . Salvage Created 649 | . 620 . 29 Parts 29 | . 28 . 1 Haulers Intercepted 1 | . 1 . . Recyclers Shooed 2 | . 2 . . Parts Field Recycled . | . . . . Retrieved Matter . | . . . . Parts Self-Destructed . | . . . . Prevented . | . . . . Kills | -11 -10 -10 -10 ------- Run | Yrd Mat Min Sub Combat Hostiles Destroyed 14 | . 13 . 1 Guns 8 | . 8 . . Cannons 6 | . 5 . 1 Classes Destroyed 7 | . 6 . 1 Worker 1 | . 1 . . Hauler 1 | . 1 . . Operator 1 | . 1 . . Watcher 2 | . 2 . . Swarmer 3 | . 3 . . Grunt 10 | . 10 . . Subdweller 1 | . . . 1 Best Kill Streak 5 | . 5 . 1 Combat Bots Only 5 | . 5 . 1 Max Kills in Single Turn 2 | . 2 . 1 Gunslinging . | . . . . Exploded . | . . . . Melee . | . . . . Uniques/NPCs Destroyed . | . . . . Combat | -11 -10 -10 -10 -------- Run | Yrd Mat Min Sub Hostile Shots Fired 117 | . 101 . 16 Missed 36 | . 30 . 6 Damage Taken 1314 | . 863 . 451 Core 251 | . 117 . 134 Absorbed by Shields . | . . . . Core Remaining (%) 100 | 100 . . . Volleys Fired 73 | . 61 1 11 Largest 2 | . 2 2 2 Hottest 99 | . 80 95 99 Shots Fired 133 | . 109 2 22 Gun 96 | . 96 . . Cannon 37 | . 13 2 22 Launcher . | . . . . Special . | . . . . Kinetic 93 | . 81 1 11 Thermal 25 | . 13 1 11 Explosive . | . . . . Electromagnetic 15 | . 15 . . Robot Hit Streak 12 | . 12 . 7 Robot Miss Streak 5 | . 5 . 1 Penetration Max . | . . . . Secondary Targets 1 | . 1 . . Max Gunslinging Chain 1 | . 1 . . Shots Hit Robots 91 | . 73 . 18 Core Hits 32 | . 27 1 4 Critical Kills . | . . . . Critical Parts Destroyed . | . . . . Critical Strikes . | . . . . Melee Attacks . | . . . . Impact . | . . . . Slashing . | . . . . Piercing . | . . . . Sneak Attacks . | . . . . Combat Hostiles . | . . . . Follow-up Attacks . | . . . . Damage Inflicted 1405 | . 1078 8 319 Guns 886 | . 886 . . Cannons 486 | . 167 . 319 Explosions 25 | . 25 . . Melee . | . . . . Ramming 8 | . . 8 . Kinetic 915 | . 752 . 163 Thermal 348 | . 192 . 156 Explosive . | . . . . Electromagnetic 134 | . 134 . . Impact . | . . . . Slashing . | . . . . Piercing . | . . . . Highest Corruption . | . . . . Average Corruption . | . . . . Corruption Purged . | . . . . Corruption Blocked . | . . . . Overload Shots . | . . . . Overflow Damage . | . . . . Projectiles . | . . . . Explosions . | . . . . Melee . | . . . . Knockbacks 1 | . . 1 . Impact 1 | . . 1 . Kinetic . | . . . . Secondary . | . . . . Self-Inflicted Damage 38 | . 38 . . Shots 1 | . 1 . . Rammed 3 | . . 3 . Targets Rammed 3 | . . 3 . Kicked . | . . . . Crushed . | . . . . Highest Temperature 254 | . 254 33 . Average Temperature 76 | . 78 20 . Received Heat Transfer 462 | . 441 . 21 Effects 2 | . 2 . . Energy Bleed 2 | . 2 . . Siege Activations . | . . . . Robots Corrupted . | . . . . Combat Hostiles . | . . . . Parts Fried 1 | . 1 . . Impact Corruptions . | . . . . Robots Melted . | . . . . Combat Hostiles . | . . . . Parts Melted . | . . . . Heat Transferred 716 | . 383 . 333 Parts Sabotaged . | . . . . Parts Stolen . | . . . . Parts Stripped . | . . . . Power Chain Reactions 1 | . 1 . . Alert | -11 -10 -10 -10 ------- Run | Yrd Mat Min Sub Peak Influence 147 | . 147 50 . Initial 50 | . . 50 . Average 48 | . 54 36 . Maximum Alert Level . | . . . . Low Security (%) 100 | 100 100 100 . Level 1 . | . . . . Level 2 . | . . . . Level 3 . | . . . . Level 4 . | . . . . Level 5 . | . . . . High Security . | . . . . Max Security . | . . . . Squads Dispatched 3 | . 3 . . Investigation 2 | . 2 . . Extermination . | . . . . Reinforcement 1 | . 1 . . Assault . | . . . . Garrison . | . . . . Intercept . | . . . . Searches Triggered . | . . . . Construction Impeded . | . . . . Haulers Reinforced . | . . . . Active Scanning Responses . | . . . . Cargo Convoy Interrupts . | . . . . Stealth | -11 -10 -10 -10 --------- Run | Yrd Mat Min Sub Distress Signals . | . . . . Communications Jammed . | . . . . Distress Signals . | . . . . Times Spotted 24 | . 20 . 4 Peak Tracking Total 5 | . 5 . 3 Tactical Retreats . | . . . . Traps | -11 -10 -10 -10 ------- Run | Yrd Mat Min Sub Traps Triggered 2 | . 1 . 1 Indirectly . | . . . . Trap Hack Attempts . | . . . . Triggered . | . . . . Disarmed . | . . . . Reprogrammed . | . . . . Reused . | . . . . Traps Extracted . | . . . . Installed . | . . . . Triggered . | . . . . Machines | -11 -10 -10 -10 ---------- Run | Yrd Mat Min Sub Machines Disabled 3 | . 1 2 . Max in Single Turn 2 | . 1 2 . Machines Repaired . | . . . . Machines Dismantled . | . . . . Machines Sabotaged . | . . . . Overloaded Fab Kills . | . . . . Hacking | -11 -10 -10 -10 --------- Run | Yrd Mat Min Sub Machines Accessed 6 | . 6 . . Terminals 5 | . 5 . . Fabricators . | . . . . Repair Stations . | . . . . Recycling Units 1 | . 1 . . Scanalyzers . | . . . . Garrison Access . | . . . . Total Hacks 34 | . 34 . . Successful 22 | . 22 . . Failed 12 | . 12 . . Catastrophic 3 | . 3 . . Database Lockouts . | . . . . Manual 23 | . 23 . . Terminals 30 | . 30 . . Fabricators . | . . . . Repair Stations . | . . . . Recycling Units 4 | . 4 . . Scanalyzers . | . . . . Garrison Access . | . . . . Terminal Hacks 13 | . 13 . . Robot Analysis 4 | . 4 . . Prototype ID Bank 1 | . 1 . . Terminal Index 2 | . 2 . . Recycling Unit Index 1 | . 1 . . Scanalyzer Index 1 | . 1 . . Locate Traps 1 | . 1 . . Hauler Manifests 1 | . 1 . . Zone Layout 2 | . 2 . . Fabricator Hacks . | . . . . Repair Station Hacks . | . . . . Recycling Unit Hacks 3 | . 3 . . Process 1 | . 1 . . Report Inventory 1 | . 1 . . Retrieve Matter 1 | . 1 . . Scanalyzer . | . . . . Garrison Access Hacks . | . . . . Unauthorized Hacks 6 | . 6 . . Terminals 5 | . 5 . . Botnet 4 | . 4 . . Operators 1 | . 1 . . Fabricators . | . . . . Repair Stations . | . . . . Recycling Units 1 | . 1 . . Tunnel 1 | . 1 . . Scanalyzers . | . . . . Garrison Access . | . . . . Data Cores Recovered . | . . . . Used . | . . . . Hacking Detections 6 | . 6 . . Full Trace Events 1 | . 1 . . Feedback Events . | . . . . Feedback Blocked . | . . . . Robot Schematics Acquired . | . . . . Robots Built . | . . . . Authchips . | . . . . Time . | . . . . Total Robot Build Rating . | . . . . Part Schematics Acquired . | . . . . Parts Built . | . . . . Authchips . | . . . . Time . | . . . . Total Part Build Rating . | . . . . Parts Repaired . | . . . . Time . | . . . . Parts Recycled . | . . . . Recycled Matter 227 | . 227 . . Retrieved Matter 419 | . 419 . . Retrieved Components . | . . . . Parts Scanalyzed . | . . . . Part Schematics Acquired . | . . . . Parts Damaged . | . . . . Bothacking | -11 -10 -10 -10 ------------ Run | Yrd Mat Min Sub Used RIF Installer . | . . . . Robots Hacked . | . . . . Non-combat . | . . . . Combat . | . . . . Robot Hacks Applied . | . . . . Relay Couplers Released . | . . . . Fabnet Peak Effective % . | . . . . Robots Rewired . | . . . . Allies Hacked . | . . . . Hacks Repelled . | . . . . Allies | -11 -10 -10 -10 -------- Run | Yrd Mat Min Sub Total Allies 1 | . . 1 . Largest Group 1 | . . 1 . Highest-Rated Group 31 | . . 31 . Highest-Rated Ally 31 | . . 31 . Total Orders . | . . . . Ally Attacks . | . . . . Total Damage . | . . . . Kills . | . . . . Allies Corrupted . | . . . . Allies Melted . | . . . . Intel | -11 -10 -10 -10 ------- Run | Yrd Mat Min Sub Robot Analysis Total 4 | . 4 . . Derelict Logs Recovered 3 | . . 3 . Drone Launches . | . . . . Drone Recoveries . | . . . . Exploration | -11 -10 -10 -10 ------------- Run | Yrd Mat Min Sub Turns Passed 2476 | 3 1451 855 167 Spaces Moved 1051 | 3 461 502 85 Core 7 | . . . 7 Treads 664 | . 84 502 78 Legs 109 | 3 106 . . Wheels 271 | . 271 . . Hover . | . . . . Flight . | . . . . Fastest Speed 50 | 120 120 160 50 Average Speed 210 | 120 270 166 150 Slowest Speed 400 | 120 400 400 160 Overloaded Moves . | . . . . Propulsion Burnouts . | . . . . Robots Hopped . | . . . . Cave-ins Triggered . | . . . . Exploration Rate (%) 44 | 2 71 96 9 Regions Visited 3 Branch Regions 2 Pre-discovered Areas 5 | . 1 3 1 Known Exits Taken . | . . . . Unknown Exits Taken 3 | 1 1 1 . Scrap Searched 3 | . . 1 2 Spaces Dug . | . . . . Terrain Destroyed . | . . . . Melee . | . . . . Projectile . | . . . . AOE . | . . . . Terrain Rammed . | . . . . Walls Destroyed . | . . . . Machines Disabled . | . . . . Actions | -11 -10 -10 -10 --------- Run | Yrd Mat Min Sub Total 1181 | 2 554 522 103 Wait 11 | . 9 2 . Move 1048 | 2 460 501 85 Hop . | . . . . Pick Up 13 | . 10 2 1 Fast Attach 4 | . 2 1 1 Attach 10 | . 6 3 1 Detach 4 | . 1 1 2 Swap 5 | . 4 1 . Drop 10 | . 1 7 2 Fire 73 | . 61 1 11 Melee . | . . . . Ram . | . . . . Kick . | . . . . Crush 3 | . . 3 . Escape Stasis . | . . . . Rewire . | . . . . Trap . | . . . . Miscellaneous . | . . . . Route ------- -11/Scrapyard -10/Materials (discovered 3 exits: [*Mat x2] / [*Min]) -10/Mines (discovered 3 exits: [*Mat x2] / [*Sub]) -10/Subcaves (discovered 1 exit: [*Mat]) History --------- Turn | Location | Event 1 | -11/Scrapyard | Discovered new exit (range 3) 4 | -11/Scrapyard | Entered Materials 289 | -10/Materials | Discovered new exit (range 16) 447 | -10/Materials | Build established: Hauler-Mutant 560 | -10/Materials | Discovered new exit (range 12) 764 | -10/Materials | Discovered new exit (range 10) 1345 | -10/Materials | Lost 3 parts (1p2w) 1455 | -10/Materials | Entered Mines 1458 | -10/Mines | Received a Mining Laser from a helpful Derelict 1479 | -10/Mines | Met a Derelict bent on vengeance 1560 | -10/Mines | Discovered new exit (range 15) 1605 | -10/Mines | Learned location of Zion (-6) 1826 | -10/Mines | Build established: Mutant 2017 | -10/Mines | Discovered new exit (range 10) 2286 | -10/Mines | Discovered new exit (range 13) 2310 | -10/Mines | Entered Subcaves 2334 | -10/Subcaves | Discovered new exit (range 10) 2349 | -10/Subcaves | Core integrity fell below 50% 2422 | -10/Subcaves | Met a Zionite searching for "candidates" 2475 | -10/Subcaves | Core integrity fell below 20% 2477 | -10/Subcaves | Destroyed by 9W-KRB(R) with Subdweller Beam Cannon Last Messages --------------- 02373_ Dropped Sml. Storage Unit. 02373_ Acquired Battle Rifle. 02415_ 2T-IOT(z): "She is not going to be happy we haven't found any suitable candidates yet." 02421_ Triggered Shrapnel Trap. 02421_ An expanding cloud of shrapnel blasts out in all directions. 02422_ 2T-IOT(z): "Hey you! It's really dangerous down here, I feel that you could die at any moment. For your health and safety might I suggest a trip to Zion?" World map confirmed: -6/Zion. 02447_ 41-NO0(R): "MADSUB!" 02448_ Lgt. Cannon destroyed. 02448_ A0-UUF(z) destroyed. 02450_ Lgt. Treads destroyed. 02450_ 2T-IOT(z) destroyed. 9W-KRB(R) emerges from concealment. 02463_ Critical hit (Destroy). 02463_ Lgt. Treads destroyed. 02472_ Lgt. Ion Engine destroyed. 02473_ Dropped Beam Cannon. Map ----- +----------------------------------------------------+ | ????## ???????????????????????????????????????? | | ????# ????????????????????????????????????????? | | ???? ????????????????????????????????????????? | | ????# #????????????????????????????????????????? | | ????# ?????????????????????????????????????????? | | #### #?????????????????????????????????????????? | | # # #?????????????????????????????????????????? | | ##????????????????????????????????????????? | | ## #####????????????????????????????????????? | | ### #????????????????????????????????????? | | # #????????????????????????????????????? | | #?????????????????????????????????????? | | ##?????????????????????????????????????? | | #### ##????? #?????????????????????????????? | | ##??## #???? ##???????????????????????????? | | #??## ##??? ?????????????????????????? | | ??## "#### ?????????????????????????? | | ??# "" # % ???##????????????????????? | | ??# ""# #??? ##???????????????????? | | ??##### "## #### ????????????????????? | | ??????##" "## R ?????????????????????? | | ???????#""" "#? #?????????????????????? | | ???????#### "#??# #?????????????????????? | | ?????????# ##?# ? ##????????????????????? | | ?????????# ### ## #????????????????????? | | ?????????# "# @ #????????????????????? | | ?????????# "# ^#????????????????????? | | ?????????# ### ##????????????????????? | | ?????????# ?# ###?????????????????????? | | ?????????##?# ] ##???????????????????????? | | ????????????## #???????????????????????? | | ?????????????# ##???????????????????????? | | ?????????????# #???????????????????????? | | ?????????????# ??????????????????????? | | ?????????????# ????????????????????? | | ?????????????# ; ; ??????????????????? | | ?????????????### ;;;; ### ?????????????????? | | ???????????????###### #??? ?????????????????? | | ????????????????????#### #????##????????????????? | | ????????????????????????#? ??????????????????????? | | ?????????????????????????%% ?????????????????????? | | ????????????????????????? ????????????????????? | | ?????????????????????????? ?????????????????????? | | ?????????????????????????????????????????????????? | | ?????????????????????????????????????????????????? | | ?????????????????????????????????????????????????? | | ?????????????????????????????????????????????????? | | ?????????????????????????????????????????????????? | | ?????????????????????????????????????????????????? | | ?????????????????????????????????????????????????? | +----------------------------------------------------+ Best States ------------- Heat Dissipation 25 Energy Generation 10 Energy Capacity 250 Matter Stores 300 Matter Capacity 300 Sight Range 16 Robot Scan Range 14 Terrain Scan Density 10 Evasion (%) 55 Targeting Accuracy 5 Recoil Reduction 2 Item Schematics ----------------- None Robot Schematics ------------------ None Fabricated ------------ Nothing Alien Tech Used ----------------- None Achievements -------------- None Challenges ------------ None Game ------ Seed SpreadRocketTerminator Manual? 0 Play Time 00:15:13 Cumulative 961.7 hours Start 2024.10.11 @ 23:51:39 End 2024.10.12 @ 00:28:05 Sessions 2 Manual Loads 0 Difficulty Rogue Special Mode None Game No. 1176 Rogue 896 Adventurer 124 Explorer 156 Win Type - Total 41 Types 28/0/8/3/1/0/0/1/0 Lore% 85 Gallery% 90 Achievement% 78 Wizard Run 0 Options --------- Layout 0 ASCII 0 Keyboard 1 Movement Numpad Keybinds 0 Fullscreen 2 Font 18/X11 Map View 76x50 Zoom Use 2% Tactical HUD 1 Map Filters NONE Filters NONE Steam 1 RUN: 24d688bf-b3da-426c-9af7-799f76ce9b7e